fUST/lending_fUST_20240117
["ID","MTS","AMOUNT","RATE_DAILY","PERIOD"]
[311907235,1705492241976,-500.0,0.00022054,2]
[311907237,1705492241985,-500.0,0.00022054,2]
[311907239,1705492241993,-500.0,0.00022054,2]
[311907241,1705492242002,-1199.9,0.00022054,2]
[311907243,1705492242011,-500.0,0.00022054,2]
[311907245,1705492242020,-505.28,0.00022054,2]
[311907247,1705492242030,-500.0,0.00022054,2]
[311907249,1705492242038,-500.0,0.00022054,2]
[311907251,1705492242047,-500.0,0.00022054,2]
[311907253,1705492242057,-500.0,0.00022054,2]
[311907255,1705492242065,-500.0,0.00022054,2]
[311907256,1705492242078,-500.0,0.00022054,2]
[311907258,1705492242087,-500.0,0.00022054,2]
[311907260,1705492242097,-500.0,0.00022054,2]
[311907263,1705492242108,-375.08228626,0.00022054,2]
[311907265,1705492242118,-500.0,0.00022054,2]
[311907267,1705492242127,-781.25,0.00022054,2]
[311907268,1705492242136,-619.60676546,0.00022054,2]
[311907270,1705492242146,-500.0,0.00022054,2]
[311907273,1705492242156,-500.0,0.00022054,2]
[311907274,1705492242165,-500.0,0.00022054,2]
[311907277,1705492242174,-500.0,0.00022054,2]
[311907278,1705492242183,-4294.21,0.00022054,2]
[311907280,1705492242192,-500.0,0.00022054,2]
[311907282,1705492242201,-735.83,0.00022054,2]
[311907284,1705492242210,-1449.51,0.00022054,2]
[311907286,1705492242219,-1598.98,0.00022054,2]
[311907288,1705492242228,-500.0,0.00022054,2]
[311907290,1705492242237,-806.22,0.00022054,2]
[311907292,1705492242246,-305.08682904,0.00022054,2]
[311907294,1705492242255,-500.0,0.00022054,2]
[311907296,1705492242263,-500.0,0.00022054,2]
[311907298,1705492242272,-500.0,0.00022054,2]
[311907300,1705492242281,-500.0,0.00022054,2]
[311907302,1705492242290,-787.57,0.00022054,2]
[311907304,1705492242299,-500.0,0.00022054,2]
[311907306,1705492242310,-500.0,0.00022054,2]
[311907308,1705492242319,-500.0,0.00022054,2]
[311907310,1705492242328,-500.0,0.00022054,2]
[311907312,1705492242336,-500.0,0.00022054,2]
[311907314,1705492242346,-500.0,0.00022054,2]
[311907316,1705492242354,-500.0,0.00022054,2]
[311907317,1705492242364,-639.13,0.00022054,2]
[311907319,1705492242373,-1560.19,0.00022054,2]
[311907321,1705492242382,-500.0,0.00022054,2]
[311907323,1705492242391,-2140.96,0.00022054,2]
[311907325,1705492242400,-500.0,0.00022054,2]
[311907327,1705492242409,-1161.17,0.00022054,2]
[311907330,1705492242422,-500.0,0.00022054,2]
[311907333,1705492242439,-500.0,0.00022054,2]
[311907335,1705492242454,-500.0,0.00022054,2]
[311907338,1705492242467,-1666.72,0.00022054,2]
[311907340,1705492242482,-2537.13,0.00022054,2]
[311907343,1705492242497,-500.0,0.00022054,2]
[311907345,1705492242513,-500.0,0.00022054,2]
[311907348,1705492242528,-500.0,0.00022054,2]
[311907350,1705492242541,-15685.7,0.00022054,2]
[311907352,1705492242555,-500.0,0.00022054,2]
[311907355,1705492242569,-500.0,0.00022054,2]
[311907357,1705492242582,-500.0,0.00022054,2]
[311907360,1705492242596,-500.0,0.00022054,2]
[311907362,1705492242606,-500.0,0.00022054,2]
[311907365,1705492242623,-14463.17,0.00022054,2]
[311907367,1705492242638,-500.0,0.00022054,2]
[311907369,1705492242650,-500.0,0.00022054,2]
[311907372,1705492242663,-789.33,0.00022054,2]
[311907374,1705492242677,-500.0,0.00022054,2]
[311907377,1705492242693,-626.75,0.00022054,2]
[311907380,1705492242709,-500.0,0.00022054,2]
[311907382,1705492242722,-2596.88,0.00022054,2]
[311907384,1705492242733,-500.0,0.00022054,2]
[311907386,1705492242745,-500.0,0.00022054,2]
[311907389,1705492242759,-500.0,0.00022054,2]
[311907391,1705492242771,-503.76,0.00022054,2]
[311907394,1705492242784,-500.0,0.00022054,2]
[311907396,1705492242796,-1568.84,0.00022054,2]
[311907398,1705492242807,-691.13,0.00022054,2]
[311907400,1705492242819,-5580.57,0.00022054,2]
[311907402,1705492242831,-500.0,0.00022054,2]
[311907405,1705492242844,-500.0,0.00022054,2]
[311907407,1705492242857,-6224.26,0.00022054,2]
[311907409,1705492242869,-500.0,0.00022054,2]
[311907412,1705492242881,-500.0,0.00022054,2]
[311907414,1705492242893,-8366.28,0.00022054,2]
[311907416,1705492242905,-500.0,0.00022054,2]
[311907418,1705492242917,-27030.65,0.00022054,2]
[311907420,1705492242929,-500.0,0.00022054,2]
[311907423,1705492242941,-500.0,0.00022054,2]
[311907425,1705492242953,-500.0,0.00022054,2]
[311907427,1705492242966,-2594.69,0.00022054,2]
[311907429,1705492242978,-500.0,0.00022054,2]
[311907432,1705492242990,-2788.32,0.00022054,2]
[311907433,1705492243002,-500.0,0.00022054,2]
[311907434,1705492243014,-500.0,0.00022054,2]
[311907435,1705492243026,-788.59,0.00022054,2]
[311907436,1705492243038,-500.0,0.00022054,2]
[311907437,1705492243050,-500.0,0.00022054,2]
[311907438,1705492243063,-500.0,0.00022054,2]
[311907439,1705492243077,-500.0,0.00022054,2]
[311907440,1705492243089,-1529.34,0.00022056,2]
[311907441,1705492243101,-1529.34,0.00022056,2]
[311907442,1705492243114,-1529.34,0.00022056,2]
[311907443,1705492243126,-1529.34,0.00022056,2]
[311907444,1705492243137,-1529.34,0.00022056,2]
[311907445,1705492243153,-1529.34,0.00022056,2]
[311907446,1705492243166,-1529.34,0.00022056,2]
[311907448,1705492243177,-151.0,0.00022057,2]
[311907450,1705492243189,-151.0,0.00022057,2]
[311907452,1705492243201,-151.0,0.00022057,2]
[311907464,1705492243286,-173.939081,0.00022057,2]
[311907466,1705492243319,-211.731382,0.00022057,2]
[311907468,1705492243328,-211.731382,0.00022057,2]
[311907470,1705492243338,-211.731382,0.00022057,2]
[311907472,1705492243348,-211.731382,0.00022057,2]
[311907474,1705492243357,-211.731382,0.00022057,2]
[311907476,1705492243366,-211.731382,0.00022057,2]
[311907478,1705492243375,-335.311986,0.00022057,2]
[311907480,1705492243383,-335.311986,0.00022057,2]
[311907482,1705492243392,-335.311986,0.00022057,2]
[311907484,1705492243401,-335.311986,0.00022057,2]
[311907486,1705492243410,-335.311986,0.00022057,2]
[311907488,1705492243420,-335.311986,0.00022057,2]
[311907491,1705492243429,-23665.51514155,0.00022057,2]
[311907493,1705492243450,-5000.0,0.00022057,2]
[311907495,1705492243460,-5000.0,0.00022057,2]
[311907497,1705492243470,-5000.0,0.00022057,2]
[311907499,1705492243480,-5000.0,0.00022057,2]
[311907501,1705492243489,-5000.0,0.00022057,2]
[311907503,1705492243499,-5000.0,0.00022057,2]
[311907505,1705492243509,-5000.0,0.00022057,2]
[311907508,1705492243519,-5000.0,0.00022057,2]
[311907510,1705492243529,-5000.0,0.00022057,2]
[311907512,1705492243538,-5000.0,0.00022057,2]
[311907514,1705492243547,-5000.0,0.00022057,2]
[311907516,1705492243557,-5000.0,0.00022057,2]
[311907518,1705492243566,-5000.0,0.00022057,2]
[311907520,1705492243575,-5000.0,0.00022057,2]
[311907522,1705492243584,-5000.0,0.00022057,2]
[311907524,1705492243594,-5000.0,0.00022057,2]
[311907526,1705492243603,-5000.0,0.00022057,2]
[311907528,1705492243613,-5000.0,0.00022057,2]
[311907530,1705492243622,-5000.0,0.00022057,2]
[311907532,1705492243631,-6345.37195102,0.00022057,2]
[311907534,1705492243640,-5000.0,0.00022057,2]
[311907536,1705492243650,-291.29183865,0.00022057,2]
[311907544,1705492243718,-4708.70816135,0.00022057,2]
[311907546,1705492243728,-5000.0,0.00022057,2]
[311907548,1705492243739,-5000.0,0.00022057,2]
[311907550,1705492243748,-5000.0,0.00022057,2]
[311907552,1705492243757,-5000.0,0.00022057,2]
[311907554,1705492243767,-22232.00577958,0.00022057,2]
[311907556,1705492243777,-5000.0,0.00022057,2]
[311907558,1705492243786,-5000.0,0.00022057,2]
[311907560,1705492243795,-5000.0,0.00022057,2]
[311907562,1705492243806,-5000.0,0.00022057,2]
[311907564,1705492243815,-5000.0,0.00022057,2]
[311907566,1705492243825,-5000.0,0.00022057,2]
[311907568,1705492243834,-5000.0,0.00022057,2]
[311907570,1705492243843,-5000.0,0.00022057,2]
[311907572,1705492243852,-5000.0,0.00022057,2]
[311907574,1705492243864,-4184.91528848,0.00022057,2]
[311907576,1705492243874,-5000.0,0.00022057,2]
[311907578,1705492243883,-5000.0,0.00022057,2]
[311907580,1705492243892,-5000.0,0.00022057,2]
[311907582,1705492243901,-5000.0,0.00022057,2]
[311907584,1705492243910,-5000.0,0.00022057,2]
[311907586,1705492243921,-5000.0,0.00022057,2]
[311907588,1705492243931,-5000.0,0.00022057,2]
[311907590,1705492243941,-5000.0,0.00022057,2]
[311907592,1705492243950,-5000.0,0.00022057,2]
[311907594,1705492243960,-3903.69246899,0.00022057,2]
[311907596,1705492243970,-4017.11609344,0.00022057,2]
[311907701,1705492244924,-2580.47,0.00021917,2]
[311907703,1705492244934,-500.0,0.00021917,2]
[311907705,1705492244944,-2580.47,0.00022054,2]
[311907707,1705492244953,-500.0,0.00022054,2]
[311907709,1705492244962,-982.88390656,0.00022057,2]
[311907711,1705492244971,-5000.0,0.00022057,2]
[311907713,1705492244980,-5000.0,0.00022057,2]
[311907715,1705492244989,-5000.0,0.00022057,2]
[311907717,1705492245000,-1529.34,0.0002219,2]
[311907719,1705492245009,-1529.34,0.0002219,2]
[311907721,1705492245018,-1529.34,0.0002219,2]
[311907723,1705492245027,-1529.34,0.0002219,2]
[311907725,1705492245037,-1529.34,0.0002219,2]
[311907727,1705492245046,-1529.39756295,0.0002219,2]
[311907729,1705492245055,-151.0,0.00022191,2]
[311907731,1705492245064,-211.731382,0.00022191,2]
[311907733,1705492245076,-211.731382,0.00022191,2]
[311907735,1705492245087,-335.311986,0.00022191,2]
[311907737,1705492245096,-335.311986,0.00022191,2]
[311907739,1705492245106,-500.0,0.00022191,2]
[311907741,1705492245117,-500.0,0.00022191,2]
[311907742,1705492245127,-500.0,0.00022191,2]
[311907744,1705492245137,-500.0,0.00022191,2]
[311907746,1705492245147,-500.0,0.00022191,2]
[311907748,1705492245158,-621.45315429,0.00022191,2]
[311907750,1705492245167,-500.0,0.00022191,2]
[311907752,1705492245177,-505.90431554,0.00022191,2]
[311907754,1705492245187,-500.0,0.00022191,2]
[311907756,1705492245196,-551.1,0.00022191,2]
[311907758,1705492245205,-500.0,0.00022191,2]
[311907760,1705492245215,-500.0,0.00022191,2]
[311907762,1705492245223,-500.0,0.00022191,2]
[311907764,1705492245232,-566.15,0.00022191,2]
[311907766,1705492245241,-1032.62,0.00022191,2]
[311907768,1705492245250,-586.54466235,0.00022191,2]
[311907770,1705492245259,-500.0,0.00022191,2]
[311907771,1705492245269,-500.0,0.00022191,2]
[311907773,1705492245278,-1507.02,0.00022191,2]
[311907775,1705492245287,-2201.11,0.00022191,2]
[311907777,1705492245297,-470.46759968,0.00022191,2]
[311907778,1705492245306,-500.0,0.00022191,2]
[311907779,1705492245315,-500.0,0.00022191,2]
[311907780,1705492245324,-2433.90612198,0.00022191,2]
[311907781,1705492245337,-461.82387802,0.00022191,2]
[311907782,1705492245346,-500.0,0.00022191,2]
[311907783,1705492245355,-38.01313645,0.00022191,2]
[311907784,1705492245368,-461.98686355,0.00022191,2]
[311907785,1705492245378,-500.0,0.00022191,2]
[311907786,1705492245387,-509.38162307,0.00022191,2]
[311907787,1705492245396,-500.0,0.00022191,2]
[311907788,1705492245405,-807.84,0.00022191,2]
[311907789,1705492245414,-500.0,0.00022191,2]
[311907790,1705492245423,-500.0,0.00022191,2]
[311907792,1705492245433,-500.0,0.00022191,2]
[311907793,1705492245442,-500.0,0.00022191,2]
[311907794,1705492245452,-500.0,0.00022191,2]
[311907795,1705492245461,-344.85757155,0.00022191,2]
[311907796,1705492245470,-635.81,0.00022191,2]
[311907797,1705492245479,-718.68,0.00022191,2]
[311907799,1705492245488,-500.0,0.00022191,2]
[311907800,1705492245498,-500.0,0.00022191,2]
[311907802,1705492245507,-500.0,0.00022191,2]
[311907804,1705492245516,-1083.38,0.00022191,2]
[311907806,1705492245525,-500.0,0.00022191,2]
[311907807,1705492245534,-628.95,0.00022191,2]
[311907813,1705492245626,-500.0,0.00022191,2]
[311907815,1705492245635,-465.15047462,0.00022191,2]
[311907817,1705492245644,-500.0,0.00022191,2]
[311907819,1705492245653,-500.0,0.00022191,2]
[311907821,1705492245662,-500.0,0.00022191,2]
[311907823,1705492245672,-865.83,0.00022191,2]
[311907824,1705492245681,-500.0,0.00022191,2]
[311907826,1705492245691,-500.0,0.00022191,2]
[311907828,1705492245700,-500.0,0.00022191,2]
[311907830,1705492245710,-1199.9,0.00022191,2]
[311907832,1705492245719,-234.02972932,0.00022191,2]
[311907834,1705492245728,-505.28,0.00022191,2]
[311907836,1705492245737,-500.0,0.00022191,2]
[311907838,1705492245747,-167.60150433,0.00022191,2]
[311907840,1705492245756,-500.0,0.00022191,2]
[311907842,1705492245765,-500.0,0.00022191,2]
[311907844,1705492245774,-500.0,0.00022191,2]
[311907846,1705492245783,-500.0,0.00022191,2]
[311907848,1705492245793,-781.25,0.00022191,2]
[311907850,1705492245806,-401.25528764,0.00022191,2]
[311907852,1705492245815,-500.0,0.00022191,2]
[311907854,1705492245824,-478.85011104,0.00022191,2]
[311907856,1705492245836,-24.45273853,0.00022191,2]
[311907858,1705492245845,-503.88032041,0.00022191,2]
[311907860,1705492245854,-879.20395545,0.00022191,2]
[311909452,1705492333723,1466.67664473,0.00016642,2]
[311909454,1705492359671,1466.67664473,0.00016436,2]
[311909455,1705492377670,1466.67664473,0.00016436,2]
[311909456,1705492395664,1467.04826523,0.00016436,2]
[311909459,1705492573529,10000.0,0.00029,30]
[311909493,1705493432213,-154.9690062,0.00019723,3]
[311909495,1705493432223,-976.79905731,0.00019724,2]
[311909496,1705493432232,-321.88009554,0.00019957,2]
[311909498,1705493432242,-2042.96137226,0.00019969,2]
[311909529,1705493438253,-6711.1130899,0.00019969,2]
[311909530,1705493438265,-1112.59905219,0.0001997,2]
[311909531,1705493438276,-366.624442,0.00020317,2]
[311909532,1705493438291,-1445.0650508,0.00020414,2]
[311909533,1705493438304,-170.25272058,0.000209,2]
[311909534,1705493438318,-232.79062501,0.00021,2]
[311909535,1705493438331,-6037.03561931,0.00021,2]
[311909536,1705493438344,-13526.52074853,0.00021,2]
[311909537,1705493438358,-1815.68321298,0.00021177,2]
[311909538,1705493438372,-153.0,0.00021178,2]
[311909539,1705493438386,-198.957615,0.00021178,2]
[311909540,1705493438399,-153.0,0.00021178,2]
[311909541,1705493438414,-198.957615,0.00021178,2]
[311909542,1705493438424,-227.42795143,0.00021817,2]
[311909543,1705493438436,-153.0,0.000219,2]
[311909544,1705493438449,-153.0,0.000219,2]
[311909545,1705493438461,-153.0,0.000219,2]
[311909546,1705493438474,-198.957615,0.000219,2]
[311909547,1705493438486,-153.0,0.000219,2]
[311909548,1705493438498,-153.0,0.000219,2]
[311909549,1705493438509,-198.957615,0.000219,2]
[311909550,1705493438521,-153.0,0.000219,2]
[311909551,1705493438532,-153.0,0.000219,2]
[311909552,1705493438544,-198.957615,0.000219,2]
[311909553,1705493438556,-2147.77,0.00021906,3]
[311909554,1705493438566,-4002.83,0.00021907,3]
[311909555,1705493438577,-3335.69,0.00021907,3]
[311909556,1705493438588,-326.90631676,0.00021915,2]
[311909557,1705493438600,-874.96050946,0.00021915,2]
[311909558,1705493438611,-861.08586622,0.00021915,2]
[311909559,1705493438623,-155.34268239,0.00021915,2]
[311909560,1705493438634,-1735.50272763,0.00021915,2]
[311909561,1705493438645,-237.84642437,0.00021915,2]
[311909562,1705493438656,-154.98450155,0.00021915,2]
[311909563,1705493438668,-155.11937889,0.00021915,2]
[311909564,1705493438679,-174.65684969,0.00021915,2]
[311909565,1705493438691,-155.44861642,0.00021916,2]
[311909566,1705493438702,-18718.26996216,0.00021916,2]
[311909567,1705493438713,-500.0,0.00021917,2]
[311909568,1705493438725,-500.0,0.00021917,2]
[311909569,1705493438736,-500.0,0.00021917,2]
[311909570,1705493438748,-426.88797914,0.00021917,2]
[311909571,1705493438759,-1483.36,0.00021917,2]
[311909572,1705493438772,-500.0,0.00021917,2]
[311909573,1705493438784,-500.0,0.00021917,2]
[311909574,1705493438795,-500.0,0.00021917,2]
[311909575,1705493438807,-500.0,0.00021917,2]
[311909576,1705493438819,-500.0,0.00021917,2]
[311909577,1705493438831,-500.0,0.00021917,2]
[311909578,1705493438842,-500.0,0.00021917,2]
[311909579,1705493438882,-500.0,0.00021917,2]
[311909580,1705493438894,-782.62,0.00021917,2]
[311909581,1705493438922,-500.0,0.00021917,2]
[311909582,1705493438943,-500.0,0.00021917,2]
[311909583,1705493438960,-500.0,0.00021917,2]
[311909584,1705493438977,-507.15349144,0.00021917,2]
[311909585,1705493438992,-500.0,0.00021917,2]
[311909586,1705493439007,-684.91,0.00021917,2]
[311909587,1705493439144,-500.0,0.00021917,2]
[311909588,1705493439159,-576.54,0.00021917,2]
[311909589,1705493439169,-500.0,0.00021917,2]
[311909590,1705493439179,-500.0,0.00021917,2]
[311909591,1705493439189,-500.0,0.00021917,2]
[311909593,1705493439199,-500.0,0.00021917,2]
[311909594,1705493439208,-332.27608059,0.00021917,2]
[311909595,1705493439217,-500.0,0.00021917,2]
[311909596,1705493439229,-500.0,0.00021917,2]
[311909597,1705493439239,-500.0,0.00021917,2]
[311909598,1705493439249,-500.0,0.00021917,2]
[311909599,1705493439259,-500.0,0.00021917,2]
[311909600,1705493439268,-500.0,0.00021917,2]
[311909601,1705493439277,-946.0,0.00021917,2]
[311909602,1705493439288,-500.0,0.00021917,2]
[311909603,1705493439299,-500.0,0.00021917,2]
[311909604,1705493439309,-508.23812159,0.00021917,2]
[311909605,1705493439321,-500.0,0.00021917,2]
[311909606,1705493439331,-500.0,0.00021917,2]
[311909607,1705493439341,-500.0,0.00021917,2]
[311909608,1705493439352,-500.0,0.00021917,2]
[311909609,1705493439363,-500.0,0.00021917,2]
[311909610,1705493439373,-500.0,0.00021917,2]
[311909611,1705493439383,-500.0,0.00021917,2]
[311909612,1705493439394,-500.0,0.00021917,2]
[311909613,1705493439404,-2016.86,0.00021917,2]
[311909614,1705493439414,-500.0,0.00021917,2]
[311909615,1705493439425,-508.66142748,0.00021917,2]
[311909616,1705493439437,-500.0,0.00021917,2]
[311909617,1705493439448,-500.0,0.00021917,2]
[311909618,1705493439460,-500.0,0.00021917,2]
[311909619,1705493439470,-2665.38,0.00021917,2]
[311909620,1705493439479,-503.73641132,0.00021917,2]
[311909621,1705493439489,-500.0,0.00021917,2]
[311909622,1705493439499,-500.0,0.00021917,2]
[311909623,1705493439509,-500.0,0.00021917,2]
[311909624,1705493439518,-500.0,0.00021917,2]
[311909625,1705493439528,-500.0,0.00021917,2]
[311909626,1705493439537,-500.0,0.00021917,2]
[311909627,1705493439546,-500.0,0.00021917,2]
[311909628,1705493439556,-500.0,0.00021917,2]
[311909629,1705493439565,-500.0,0.00021917,2]
[311909630,1705493439574,-500.0,0.00021917,2]
[311909631,1705493439583,-500.0,0.00021917,2]
[311909632,1705493439592,-500.0,0.00021917,2]
[311909633,1705493439602,-500.0,0.00021917,2]
[311909634,1705493439612,-610.97756718,0.00021917,2]
[311909635,1705493439622,-500.0,0.00021917,2]
[311909636,1705493439632,-500.0,0.00021917,2]
[311909637,1705493439642,-500.0,0.00021917,2]
[311909638,1705493439652,-500.0,0.00021917,2]
[311909639,1705493439662,-500.0,0.00021917,2]
[311909640,1705493439671,-500.0,0.00021917,2]
[311909641,1705493439680,-500.0,0.00021917,2]
[311909642,1705493439690,-500.0,0.00021917,2]
[311909643,1705493439700,-500.0,0.00021917,2]
[311909644,1705493439709,-500.0,0.00021917,2]
[311909645,1705493439720,-500.0,0.00021917,2]
[311909646,1705493439729,-500.0,0.00021917,2]
[311909647,1705493439738,-500.0,0.00021917,2]
[311909648,1705493439748,-500.0,0.00021917,2]
[311909649,1705493439758,-783.61839105,0.00021917,5]
[311909650,1705493439768,-610.25,0.00021917,2]
[311909651,1705493439777,-500.0,0.00021917,2]
[311909652,1705493439788,-786.38,0.00021917,2]
[311909653,1705493439798,-500.0,0.00021917,2]
[311909654,1705493439808,-500.0,0.00021917,2]
[311909655,1705493439817,-1088.35,0.00021917,2]
[311909656,1705493439827,-500.0,0.00021917,2]
[311909657,1705493439837,-500.0,0.00021917,2]
[311909658,1705493439847,-500.0,0.00021917,2]
[311909659,1705493439857,-500.0,0.00021917,2]
[311909660,1705493439866,-500.0,0.00021917,2]
[311909661,1705493439879,-500.0,0.00021917,2]
[311909662,1705493439889,-583.20336943,0.00021917,2]
[311909663,1705493439898,-500.0,0.00021917,2]
[311909664,1705493439908,-865.5,0.00021917,2]
[311909665,1705493439918,-263.49192401,0.00021917,2]
[311909666,1705493439927,-500.0,0.00021917,2]
[311909667,1705493439937,-1152.08,0.00021917,2]
[311909668,1705493439946,-500.0,0.00021917,2]
[311909669,1705493439956,-500.0,0.00021917,2]
[311909670,1705493439966,-500.0,0.00021917,2]
[311909671,1705493439975,-500.0,0.00021917,2]
[311909672,1705493439985,-637.41949336,0.00021917,2]
[311909673,1705493439995,-500.0,0.00021917,2]
[311909674,1705493440005,-500.0,0.00021917,2]
[311909675,1705493440015,-500.0,0.00021917,2]
[311909676,1705493440024,-500.0,0.00021917,2]
[311909677,1705493440033,-500.0,0.00021917,2]
[311909678,1705493440042,-500.0,0.00021917,2]
[311909679,1705493440051,-385.46353208,0.00021917,2]
[311909680,1705493440061,-716.14,0.00021917,2]
[311909681,1705493440071,-214.55184681,0.00021917,2]
[311909682,1705493440080,-500.0,0.00021917,2]
[311909683,1705493440090,-500.0,0.00021917,2]
[311909684,1705493440100,-500.0,0.00021917,2]
[311909685,1705493440110,-2486.58,0.00021917,2]
[311909686,1705493440119,-500.0,0.00021917,2]
[311909687,1705493440129,-739.8,0.00021917,2]
[311909688,1705493440138,-500.0,0.00021917,2]
[311909689,1705493440147,-500.0,0.00021917,2]
[311909690,1705493440157,-809.83,0.00021917,2]
[311909691,1705493440167,-1352.48,0.00021917,2]
[311909692,1705493440176,-1532.36,0.00021917,2]
[311909693,1705493440186,-500.0,0.00021917,2]
[311909694,1705493440196,-500.0,0.00021917,2]
[311909695,1705493440206,-788.89,0.00021917,2]
[311909696,1705493440215,-500.0,0.00021917,2]
[311909697,1705493440224,-305.08682904,0.00021917,2]
[311909698,1705493440234,-500.0,0.00021917,2]
[311909699,1705493440244,-500.0,0.00021917,2]
[311909700,1705493440253,-500.0,0.00021917,2]
[311909701,1705493440263,-500.0,0.00021917,2]
[311909702,1705493440272,-500.0,0.00021917,2]
[311909703,1705493440281,-1218.35,0.00021917,2]
[311909704,1705493440290,-1566.1,0.00021917,2]
[311909705,1705493440300,-612.5,0.00021917,2]
[311909708,1705493440310,-1818.55,0.00021917,2]
[311909710,1705493440319,-2544.56,0.00021917,2]
[311909712,1705493440329,-500.0,0.00021917,2]
[311909714,1705493440338,-500.0,0.00021917,2]
[311909715,1705493440348,-500.0,0.00021917,2]
[311909716,1705493440359,-15032.13,0.00021917,2]
[311909717,1705493440368,-500.0,0.00021917,2]
[311909718,1705493440378,-500.0,0.00021917,2]
[311909719,1705493440386,-500.0,0.00021917,2]
[311909720,1705493440396,-501.70820656,0.00021917,5]
[311909721,1705493440406,-1153.21,0.00021917,2]
[311909722,1705493440415,-500.0,0.00021917,2]
[311909723,1705493440425,-1153.21,0.00021917,2]
[311909724,1705493440434,-500.0,0.00021917,2]
[311909725,1705493440446,-1153.21,0.00021917,2]
[311909726,1705493440455,-1153.21,0.00021917,2]
[311909727,1705493440464,-500.0,0.00021917,2]
[311909728,1705493440474,-1153.21,0.00021917,2]
[311909729,1705493440485,-500.0,0.00021917,2]
[311909730,1705493440494,-500.0,0.00021917,2]
[311909731,1705493440503,-14580.15,0.00021917,2]
[311909732,1705493440514,-2051.75,0.00021917,2]
[311909733,1705493440523,-380.81535745,0.00021917,2]
[311909734,1705493440533,-500.0,0.00021917,2]
[311909735,1705493440542,-388.70818294,0.00021917,2]
[311909736,1705493440551,-500.0,0.00021917,2]
[311909737,1705493440561,-546.84,0.00021917,2]
[311909738,1705493440570,-500.0,0.00021917,2]
[311909740,1705493440579,-500.0,0.00021917,2]
[311909742,1705493440589,-1000.0,0.00021917,2]
[311909743,1705493440598,-500.0,0.00021917,2]
[311909745,1705493440609,-2488.68,0.00021917,2]
[311909747,1705493440619,-500.0,0.00021917,2]
[311909749,1705493440628,-500.0,0.00021917,2]
[311909751,1705493440637,-660.07,0.00021917,2]
[311909753,1705493440646,-535.84483329,0.00021917,2]
[311909755,1705493440655,-500.0,0.00021917,2]
[311909757,1705493440665,-500.0,0.00021917,2]
[311909759,1705493440674,-500.0,0.00021917,2]
[311909761,1705493440683,-500.0,0.00021917,2]
[311909763,1705493440693,-500.0,0.00021917,2]
[311909765,1705493440702,-363.32405101,0.00021917,2]
[311909767,1705493440711,-500.0,0.00021917,2]
[311909769,1705493440720,-500.0,0.00021917,2]
[311909771,1705493440729,-550.8718415,0.00021917,2]
[311909773,1705493440739,-500.0,0.00021917,2]
[311909775,1705493440748,-500.0,0.00021917,2]
[311909777,1705493440757,-1503.47,0.00021917,2]
[311909779,1705493440766,-662.33,0.00021917,2]
[311909781,1705493440775,-502.99980085,0.00021917,2]
[311909783,1705493440785,-500.0,0.00021917,2]
[311909785,1705493440794,-500.0,0.00021917,2]
[311909787,1705493440803,-500.0,0.00021917,2]